fUST/lending_fUST_20240703
["ID","MTS","AMOUNT","RATE_DAILY","PERIOD"]
[330975288,1719979843257,-500.0,0.0001457,2]
[330975290,1719979843267,-1393.46,0.0001457,2]
[330975291,1719979843276,-562.39,0.0001457,2]
[330975292,1719979843284,-500.0,0.0001457,2]
[330975294,1719979843295,-601.22,0.0001457,2]
[330975296,1719979843308,-505.26793413,0.0001457,2]
[330975298,1719979843318,-500.0,0.0001457,2]
[330975299,1719979843327,-500.0,0.0001457,2]
[330975301,1719979843337,-505.23879231,0.0001457,2]
[330975303,1719979843348,-507.41113253,0.0001457,2]
[330975305,1719979843358,-530.79431792,0.0001457,2]
[330975306,1719979843368,-508.13200098,0.0001457,2]
[330975308,1719979843380,-503.76566629,0.0001457,2]
[330975310,1719979843390,-503.71877937,0.0001457,2]
[330975312,1719979843399,-500.0,0.0001457,2]
[330975313,1719979843409,-7121.83,0.0001457,2]
[330975314,1719979843418,-229.56077738,0.0001457,2]
[330975315,1719979843427,-500.0,0.0001457,2]
[330975316,1719979843436,-546.65,0.0001457,2]
[330975317,1719979843445,-506.20305515,0.0001457,2]
[330975318,1719979843455,-1300.27,0.0001457,2]
[330975319,1719979843464,-500.0,0.0001457,2]
[330975322,1719979843579,-500.0,0.0001457,2]
[330975323,1719979843589,-351.66472147,0.0001457,2]
[330975324,1719979843599,-500.0,0.0001457,2]
[330975325,1719979843608,-500.0,0.0001457,2]
[330975326,1719979843617,-500.0,0.0001457,2]
[330975327,1719979843626,-500.0,0.0001457,2]
[330975328,1719979843635,-755.57,0.0001457,2]
[330975329,1719979843645,-500.0,0.0001457,2]
[330975330,1719979843654,-505.97852303,0.0001457,2]
[330975331,1719979843663,-577.48,0.0001457,2]
[330975332,1719979843672,-500.0,0.0001457,2]
[330975333,1719979843682,-582.95,0.0001457,2]
[330975334,1719979843693,-508.62047034,0.0001457,2]
[330975335,1719979843703,-500.0,0.0001457,2]
[330975336,1719979843713,-893.19,0.0001457,2]
[330975337,1719979843725,-500.0,0.0001457,2]
[330975338,1719979843735,-500.0,0.0001457,2]
[330975339,1719979843746,-500.0,0.0001457,2]
[330975340,1719979843757,-1393.46,0.00014571,2]
[330975341,1719979843767,-500.0,0.00014571,2]
[330975342,1719979843778,-500.0,0.00014571,2]
[330975343,1719979843787,-918.84,0.00014571,2]
[330975344,1719979843797,-566.6764432,0.00014571,2]
[330975345,1719979843807,-500.0,0.00014571,2]
[330975346,1719979843816,-500.0,0.00014571,2]
[330975347,1719979843825,-731.84,0.00014571,2]
[330975348,1719979843834,-500.0,0.00014571,2]
[330975349,1719979843843,-500.0,0.00014571,2]
[330975350,1719979843852,-867.52,0.00014571,2]
[330975351,1719979843861,-500.0,0.00014571,2]
[330975352,1719979843870,-500.0,0.00014571,2]
[330975353,1719979843879,-615.23,0.00014571,2]
[330975354,1719979843888,-500.0,0.00014571,2]
[330975355,1719979843898,-500.0,0.00014571,2]
[330975356,1719979843907,-744.9,0.00014571,2]
[330975357,1719979843916,-500.0,0.00014571,2]
[330975358,1719979843925,-500.0,0.00014571,2]
[330975359,1719979843934,-505.59918631,0.00014571,2]
[330975360,1719979843943,-500.0,0.00014571,2]
[330975361,1719979843953,-506.66723364,0.00014571,2]
[330975362,1719979843962,-491.52847967,0.00014571,2]
[330975363,1719979843971,-1393.46,0.00014572,2]
[330975364,1719979843979,-12911.35,0.00014572,2]
[330975365,1719979843989,-676.42,0.00014572,2]
[330975366,1719979843997,-500.0,0.00014572,2]
[330975367,1719979844006,-2181.13,0.00014572,2]
[330975368,1719979844015,-1854.54,0.00014572,2]
[330975369,1719979844024,-6040.3,0.00014572,2]
[330975370,1719979844033,-500.0,0.00014572,2]
[330975371,1719979844042,-1216.49,0.00014573,2]
[330975372,1719979844051,-818.22,0.00014573,2]
[330975373,1719979844061,-1010.12,0.00014573,2]
[330975374,1719979844070,-10640.5,0.00014573,2]
[330975375,1719979844079,-3603.57,0.00014573,2]
[330975376,1719979844088,-1393.46,0.00014574,2]
[330975377,1719979844097,-153.0,0.000147,2]
[330975378,1719979844106,-153.0,0.000147,2]
[330975379,1719979844115,-293.2145295,0.000147,2]
[330975380,1719979844125,-153.0,0.000147,2]
[330975381,1719979844135,-293.2145295,0.000147,2]
[330975382,1719979844144,-293.2145295,0.000147,2]
[330975383,1719979844153,-153.0,0.000147,2]
[330975384,1719979844162,-153.0,0.000147,2]
[330975385,1719979844172,-293.2145295,0.000147,2]
[330975386,1719979844181,-293.2145295,0.000147,2]
[330975387,1719979844190,-153.779093,0.000147,2]
[330975388,1719979844200,-154.2932348,0.000147,2]
[330975389,1719979844210,-293.2145295,0.000147,2]
[330975390,1719979844219,-306.4145384,0.000147,2]
[330975391,1719979844228,-208.5430841,0.000147,2]
[330975392,1719979844237,-293.2145295,0.000147,2]
[330975393,1719979844246,-153.0,0.000147,2]
[330975394,1719979844255,-293.2145295,0.000147,2]
[330975395,1719979844265,-153.0,0.000147,2]
[330975396,1719979844274,-206.0554141,0.000147,2]
[330975397,1719979844283,-295.7033482,0.000147,2]
[330975398,1719979844296,-153.0,0.000147,2]
[330975399,1719979844307,-153.0,0.000147,2]
[330975400,1719979844315,-206.0554141,0.000147,2]
[330975401,1719979844327,-293.2145295,0.000147,2]
[330975402,1719979844338,-153.0,0.000147,2]
[330975403,1719979844347,-206.0554141,0.000147,2]
[330975404,1719979844357,-293.2145295,0.000147,2]
[330975405,1719979844367,-153.0,0.000147,2]
[330975406,1719979844378,-293.2145295,0.000147,2]
[330975407,1719979844389,-1393.46,0.00014745,2]
[330975408,1719979844399,-1393.46,0.00014745,2]
[330975409,1719979844408,-1330.44466547,0.00014794,2]
[330975410,1719979844417,-1314.54177726,0.00014794,2]
[330975411,1719979844427,-3129.31523282,0.00014794,4]
[330975412,1719979844436,-1434.13825847,0.00014794,2]
[330975413,1719979844445,-1748.20020564,0.00014794,2]
[330975414,1719979844454,-1894.78852527,0.00014794,2]
[330975415,1719979844463,-3077.87955987,0.00014794,2]
[330975416,1719979844472,-2131.93815612,0.00014794,2]
[330975417,1719979844482,-1285.92777043,0.00014794,2]
[330975418,1719979844492,-620.07238745,0.00014794,2]
[330975419,1719979844501,-1393.46,0.00014799,2]
[330975420,1719979844510,-293.2145295,0.000148,2]
[330975421,1719979844519,-205.570166,0.000148,2]
[330975422,1719979844528,-153.0,0.000148,2]
[330975423,1719979844538,-153.0,0.000148,2]
[330975424,1719979844547,-279.8496184,0.000148,2]
[330975425,1719979844556,-208.37947575,0.000148,2]
[330975426,1719979844844,-84.83505375,0.000148,2]
[330975427,1719979844856,-153.0,0.000148,2]
[330975428,1719979844866,-293.2145295,0.000148,2]
[330975429,1719979844877,-200.376697,0.000148,2]
[330975430,1719979844888,-120.96967144,0.000148,2]
[330975431,1719979844903,-32.03032856,0.000148,2]
[330975432,1719979844915,-412.1108282,0.000148,2]
[330975433,1719979844928,-153.0,0.000148,2]
[330975434,1719979844940,-293.2145295,0.000148,2]
[330975435,1719979844952,-206.0554141,0.000148,2]
[330975436,1719979844964,-153.0,0.000148,2]
[330975437,1719979844978,-453.1279891,0.000148,2]
[330975438,1719979844991,-293.2145295,0.000148,2]
[330975439,1719979845002,-153.0,0.000148,2]
[330975440,1719979845012,-294.3995825,0.000148,2]
[330975441,1719979845022,-153.0,0.000148,2]
[330975442,1719979845032,-206.0554141,0.000148,2]
[330975443,1719979845043,-293.2145295,0.000148,2]
[330975444,1719979845056,-206.0554141,0.000148,2]
[330975445,1719979845068,-153.0,0.000148,2]
[330975446,1719979845081,-153.0,0.000148,2]
[330975447,1719979845092,-586.61,0.00014842,2]
[330975448,1719979845102,-1825.79,0.00014842,2]
[330975449,1719979845114,-531.0,0.00014842,2]
[330975450,1719979845125,-102.84014077,0.00014842,2]
[330975463,1719979846378,-153.0,0.000148,2]
[330975464,1719979846391,-11081.75985923,0.00014842,2]
[330975465,1719979846404,-840.48431113,0.00014843,2]
[330975466,1719979847115,-60.34568887,0.00014843,2]
[330975467,1719979847129,-500.0,0.00014843,2]
[330975468,1719979847141,-1473.93,0.00014843,2]
[330975469,1719979847153,-500.0,0.00014843,2]
[330975470,1719979847167,-812.24,0.00014843,2]
[330975471,1719979847180,-1083.72,0.00014843,2]
[330975472,1719979847192,-606.58,0.00014843,2]
[330975473,1719979847205,-689.01,0.00014843,2]
[330975474,1719979847218,-1081.81,0.00014843,2]
[330975475,1719979847230,-3278.14,0.00014843,2]
[330975476,1719979847243,-2187.32,0.00014843,2]
[330975477,1719979847256,-500.0,0.00014843,2]
[330975478,1719979847268,-500.71,0.00014843,2]
[330975479,1719979847280,-865.95,0.00014843,2]
[330975480,1719979847293,-1271.82,0.00014843,2]
[330975481,1719979847314,-928.09,0.00014843,2]
[330975482,1719979847325,-626.98,0.00014843,2]
[330975483,1719979847337,-500.0,0.00014843,2]
[330975484,1719979847350,-4380.06,0.00014843,2]
[330975485,1719979847362,-2127.2,0.00014843,2]
[330975486,1719979847372,-500.0,0.00014843,2]
[330975487,1719979847385,-774.84,0.00014843,2]
[330975488,1719979847395,-2103.87,0.00014843,2]
[330975489,1719979847405,-500.0,0.00014843,2]
[330975490,1719979847414,-1123.68,0.00014843,2]
[330975491,1719979847424,-500.0,0.00014843,2]
[330975492,1719979847435,-509.27428084,0.00014843,2]
[330975493,1719979847445,-500.0,0.00014843,2]
[330975494,1719979847454,-1002.89,0.00014843,2]
[330975495,1719979847464,-826.6,0.00014843,2]
[330975496,1719979847474,-500.0,0.00014843,2]
[330975497,1719979847484,-500.0,0.00014844,2]
[330975498,1719979847493,-322.09959009,0.00014844,2]
[330975499,1719979869133,500.0,0.00022465,30]
[330975533,1719980733863,1286.11472469,9.999e-05,2]
[330975534,1719980794537,1286.11472469,0.0001212,2]
[330975536,1719980933003,-300.0,0.00014018,2]
[330975538,1719980933031,-226.19133579,0.00014018,2]
[330975540,1719980933095,-73.80866421,0.00014018,2]
[330975542,1719980933127,-500.0,0.00014019,2]
[330975544,1719980933156,-186.63116539,0.00014019,2]
[330975557,1719980957660,-300.0,0.00014018,2]
[330975558,1719980957694,-486.17245291,0.00014018,2]
[330975561,1719980957737,-13.82754709,0.00014018,2]
[330975562,1719980957766,-299.10965328,0.00014018,2]
[330975577,1719980982792,-278.46034672,0.00014018,2]
[330975578,1719980982821,-529.69429926,0.00014018,2]
[330975579,1719980982854,-491.28556581,0.00014018,2]
[330975580,1719981007794,-651.54013493,0.00014018,2]
[330975581,1719981007824,-182.60331528,0.00014018,2]
[330975582,1719981009140,-117.39668472,0.00014018,2]
[330975583,1719981009169,-269.04519821,0.00014018,2]
[330975610,1719981032395,-30.95480179,0.00014018,2]
[330975611,1719981032404,-500.0,0.00014018,2]
[330975612,1719981032413,-500.0,0.00014018,2]
[330975613,1719981032422,-500.0,0.00014018,2]
[330975614,1719981032431,-212.70649737,0.00014019,2]
[330975615,1719981032440,-832.94,0.00014019,2]
[330975616,1719981032449,-500.0,0.00014019,2]
[330975617,1719981032458,-500.0,0.00014019,2]
[330975618,1719981032467,-1332.62,0.00014019,2]
[330975619,1719981032476,-500.0,0.00014019,2]
[330975620,1719981032485,-500.0,0.00014019,2]
[330975621,1719981032494,-500.0,0.00014019,2]
[330975622,1719981032503,-500.0,0.00014019,2]
[330975623,1719981032512,-760.91,0.00014019,2]
[330975624,1719981032522,-1010.13,0.00014019,2]
[330975625,1719981032531,-500.0,0.00014019,2]
[330975626,1719981032540,-9660.2,0.00014019,2]
[330975627,1719981032549,-1021.4,0.00014019,2]
[330975628,1719981032558,-2043.35,0.00014019,2]
[330975629,1719981032567,-500.0,0.00014019,2]
[330975630,1719981032576,-270.99125747,0.00014019,2]
[330975631,1719981032585,-500.0,0.00014019,2]
[330975632,1719981032594,-500.0,0.00014019,2]
[330975633,1719981032603,-635.98,0.00014019,2]
[330975634,1719981032612,-7391.06200273,0.00014019,2]
[330975646,1719981038340,-443.03799727,0.00014019,2]
[330975647,1719981038350,-500.0,0.00014019,2]
[330975648,1719981038360,-500.0,0.00014019,2]
[330975649,1719981038370,-34.67724665,0.00014019,2]
[330975650,1719981038382,-808.92881548,0.00014019,2]
[330975658,1719981041010,-304.79466997,0.00014019,2]
[330975693,1719981047293,-9278.02,0.00014018,2]
[330975694,1719981047304,-1763.2492679,0.00014019,2]
[330975695,1719981047313,-798.22,0.00014019,2]
[330975696,1719981047323,-459.19569486,0.00014019,2]
[330975697,1719981047333,-500.0,0.00014019,2]
[330975698,1719981047342,-500.0,0.00014019,2]
[330975699,1719981047352,-500.0,0.00014019,2]
[330975700,1719981047361,-500.0,0.00014019,2]
[330975701,1719981047370,-504.13710144,0.00014019,2]
[330975702,1719981047379,-500.0,0.00014019,2]
[330975703,1719981047388,-500.0,0.00014019,2]
[330975704,1719981047398,-583.99,0.00014019,2]
[330975705,1719981047407,-500.0,0.00014019,2]
[330975706,1719981047416,-500.0,0.00014019,2]
[330975707,1719981047426,-500.0,0.00014019,2]
[330975708,1719981047435,-500.0,0.00014019,2]
[330975709,1719981047449,-1059.85,0.00014019,2]
[330975710,1719981047459,-254.41969018,0.00014019,2]
[330975717,1719981271787,367.87366766,9.999e-05,7]
[330975718,1719981546635,3117.0,0.00025,120]
[330975719,1719981551954,1286.11472469,0.0001212,2]
[330975720,1719981727351,437.39525524,0.00013856,2]
[330975722,1719982133992,-151.0,0.00014,2]
[330975724,1719982134025,-300.0,0.00014016,2]
[330975726,1719982134055,-300.0,0.00014016,2]
[330975727,1719982134083,-9.46110116,0.00014017,2]
[330975730,1719982134119,-494.86394379,0.00014017,2]
[330975731,1719982134146,-180.30924966,0.00014017,2]
[330975735,1719982159028,-300.0,0.00014016,2]
[330975736,1719982159057,-151.0,0.00014016,2]
[330975737,1719982159085,-338.17378705,0.00014016,2]
[330975738,1719982159120,-236.81333823,0.00014016,2]
[330975739,1719982159147,-292.84717899,0.00014017,2]
[330975740,1719982159175,-52.90211455,0.00014017,2]
[330975741,1719982184207,-590.18,0.00014016,2]
[330975742,1719982184239,-226.42851543,0.00014016,2]
[330975743,1719982184283,-537.32045163,0.00014016,2]
[330975744,1719982209095,-843.68709477,0.00014016,2]
[330975745,1719982209165,-136.21393817,0.00014016,2]
[330975746,1719982209196,-190.03,0.00014016,2]
[330975822,1719982238624,-109.97,0.00014016,2]
[330975824,1719982238634,-500.0,0.00014016,2]
[330975826,1719982238644,-387.29915934,0.00014017,2]
[330975828,1719982238657,-64.46011889,0.00014017,2]
[330975830,1719982238666,-810.38,0.00014017,2]
[330975832,1719982238676,-259.85226311,0.00014017,2]
[330975834,1719982238687,-504.14,0.00014017,2]
[330975835,1719982238697,-500.0,0.00014017,2]
[330975837,1719982238706,-1277.1,0.00014017,2]
[330975839,1719982238715,-729.21,0.00014017,2]
[330975841,1719982238726,-968.04,0.00014017,2]
[330975843,1719982238736,-7753.18,0.00014017,2]
[330975845,1719982238745,-500.0,0.00014017,2]
[330975847,1719982238755,-298.26,0.00014017,2]
[330975849,1719982238764,-1964.86,0.00014017,2]
[330975851,1719982238774,-500.0,0.00014017,2]
[330975853,1719982238784,-609.48,0.00014017,2]
[330975855,1719982238794,-1018.01,0.00014017,2]
[330975857,1719982238804,-500.0,0.00014017,2]
[330975859,1719982238813,-500.0,0.00014017,2]
[330975861,1719982238823,-500.0,0.00014017,2]
[330975863,1719982238833,-886.99,0.00014017,2]
[330975865,1719982238842,-9620.8,0.00014017,2]
[330975867,1719982238852,-502.34,0.00014017,2]
[330975869,1719982238861,-2790.33,0.00014017,2]
[330975871,1719982238870,-500.0,0.00014017,2]
[330975873,1719982238880,-1065.55,0.00014017,2]
[330975875,1719982238889,-500.0,0.00014017,2]
[330975877,1719982238899,-500.0,0.00014017,2]
[330975879,1719982238908,-500.0,0.00014017,2]
[330975881,1719982238918,-500.0,0.00014017,2]
[330975883,1719982238927,-500.0,0.00014017,2]
[330975885,1719982238936,-500.0,0.00014017,2]
[330975886,1719982238946,-901.97,0.00014017,2]
[330975888,1719982238955,-500.0,0.00014017,2]
[330975890,1719982238965,-1015.69,0.00014017,2]
[330975893,1719982238974,-500.0,0.00014017,2]
[330975895,1719982238985,-2095.9,0.00014017,2]
[330975897,1719982238995,-500.0,0.00014017,2]
[330975899,1719982239006,-762.81,0.00014017,2]
[330975901,1719982239016,-559.66,0.00014017,2]
[330975903,1719982239026,-500.0,0.00014017,2]
[330975904,1719982239039,-2539.54492072,0.00014017,2]
[330976117,1719982244262,-1110.50507928,0.00014017,2]
[330976118,1719982244273,-106.69492072,0.00014017,2]
[330982815,1719982936018,158.55896828,9.999e-05,2]
[330982816,1719982971938,572.96839718,0.0001212,2]
[330982817,1719982994510,303.25340607,0.0001212,2]
[330982818,1719983080952,908.22919531,9.999e-05,2]
[330982819,1719983107359,877.0,0.00013959,2]
[330982820,1719983174500,386.76386939,9.999e-05,2]
[330982821,1719983246546,158.02405824,0.0001212,2]
[330982822,1719983253501,289.86280018,0.0001212,2]
[330982823,1719983277203,155.39932336,0.0001212,2]
[330982825,1719983345211,160.0,9.999e-05,2]
[330982826,1719983385312,-512.85485422,0.00014,2]
[330982827,1719983385343,-263.27451651,0.00014013,2]
[330982828,1719983385395,-36.72548349,0.00014013,2]
[330982829,1719983385429,-300.0,0.00014013,2]
[330982830,1719983385466,-154.57930398,0.00014014,2]
[330982831,1719983385497,-234.13894972,0.00014014,2]
[330982832,1719983410354,-300.0,0.00014013,2]
[330982833,1719983410385,-300.0,0.00014013,2]
[330982834,1719983410415,-206.16083289,0.00014014,2]
[330982835,1719983410450,-148.93021739,0.00014014,2]
[330982836,1719983410483,-657.2306155,0.00014014,2]
[330983090,1719983437976,-1037.2093845,0.00014014,2]
[330983092,1719983437986,-500.0,0.00014014,2]
[330983094,1719983437996,-9219.93,0.00014014,2]
[330983096,1719983438007,-1021.15,0.00014014,2]
[330983097,1719983438017,-2008.57,0.00014014,2]
[330983098,1719983438030,-500.0,0.00014014,2]
[330983099,1719983438039,-764.96,0.00014014,2]
[330983100,1719983438049,-354.39713253,0.00014014,2]
[330983101,1719983438059,-1712.19359366,0.00014015,2]
[330983102,1719983438069,-798.32,0.00014015,2]
[330983103,1719983438078,-500.0,0.00014015,2]
[330983104,1719983438088,-500.0,0.00014015,2]
[330983105,1719983438097,-235.41,0.00014015,2]
[330983106,1719983438107,-257.32,0.00014015,2]
[330983107,1719983438117,-500.0,0.00014015,2]
[330983108,1719983438127,-500.0,0.00014015,2]
[330983109,1719983438136,-698.82,0.00014015,2]
[330983110,1719983438146,-927.71,0.00014015,2]
[330983111,1719983438156,-500.0,0.00014015,2]
[330983112,1719983438166,-500.0,0.00014015,2]
[330983113,1719983438177,-500.0,0.00014015,2]
[330983114,1719983438187,-584.09,0.00014015,2]
[330983115,1719983438197,-500.0,0.00014015,2]
[330983116,1719983438206,-500.0,0.00014015,2]
[330983117,1719983438216,-500.0,0.00014015,2]
[330983118,1719983438226,-500.0,0.00014015,2]
[330983119,1719983438236,-500.0,0.00014015,2]
[330983120,1719983438246,-7430.13,0.00014015,2]
[330983121,1719983438256,-500.0,0.00014015,2]
[330983122,1719983438266,-500.0,0.00014015,2]
[330983123,1719983438275,-393.30507928,0.00014015,2]
[330983124,1719983438285,-500.0,0.00014015,2]
[330983125,1719983438294,-500.0,0.00014015,2]
[330983126,1719983438304,-500.0,0.00014015,2]
[330983127,1719983438314,-557.14,0.00014015,2]
[330983128,1719983438323,-536.34,0.00014015,2]
[330983129,1719983438333,-500.0,0.00014015,2]
[330983130,1719983438343,-500.0,0.00014015,2]
[330983131,1719983438352,-500.0,0.00014015,2]
[330983132,1719983438362,-500.0,0.00014015,2]
[330983133,1719983438371,-505.98,0.00014015,2]
[330983134,1719983438544,-500.0,0.00014015,2]
[330983135,1719983438555,-537.95,0.00014015,2]
[330983136,1719983438565,-500.0,0.00014015,2]
[330983137,1719983438574,-500.0,0.00014015,2]
[330983138,1719983438583,-864.39,0.00014015,2]
[330983139,1719983438593,-676.64,0.00014015,2]
[330983140,1719983438602,-500.0,0.00014015,2]
[330983141,1719983438611,-500.0,0.00014015,2]
[330983142,1719983438620,-500.0,0.00014015,2]
[330983143,1719983438630,-500.0,0.00014015,2]
[330983144,1719983438639,-500.0,0.00014015,2]
[330983145,1719983438648,-724.98,0.00014015,2]
[330983146,1719983438658,-500.0,0.00014015,2]
[330983147,1719983438667,-1856.41,0.00014015,2]
[330983148,1719983438677,-500.0,0.00014015,2]
[330983149,1719983438686,-638.14,0.00014015,2]
[330983150,1719983438696,-504.66144192,0.00014015,2]
[330983151,1719983438706,-1882.99,0.00014015,2]
[330983152,1719983438715,-506.03530316,0.00014015,2]
[330983153,1719983438724,-500.0,0.00014015,2]
[330983154,1719983438734,-975.59,0.00014015,2]
[330983155,1719983438745,-500.0,0.00014015,2]
[330983156,1719983438754,-500.0,0.00014015,2]
[330983157,1719983438766,-500.0,0.00014015,2]
[330983158,1719983438777,-500.0,0.00014015,2]
[330983159,1719983438786,-500.0,0.00014015,2]
[330983160,1719983438796,-500.0,0.00014015,2]
[330983161,1719983438806,-500.0,0.00014015,2]
[330983162,1719983438816,-500.0,0.00014015,2]
[330983163,1719983438826,-850.03,0.00014015,2]
[330983164,1719983438835,-500.0,0.00014015,2]
[330983165,1719983438844,-500.0,0.00014015,2]
[330983166,1719983438855,-224.9147272,0.00014015,2]
[330983167,1719983438865,-500.0,0.00014015,2]
[330983168,1719983438875,-2674.07,0.00014015,2]
[330983169,1719983438884,-500.0,0.00014015,2]
[330983170,1719983438894,-500.0,0.00014015,2]
[330983171,1719983438903,-500.0,0.00014015,2]
[330983172,1719983438913,-500.0,0.00014015,2]
[330983173,1719983438923,-500.0,0.00014015,2]
[330983174,1719983438932,-500.0,0.00014015,2]
[330983175,1719983438942,-500.0,0.00014015,2]
[330983176,1719983438952,-500.0,0.00014015,2]
[330983177,1719983438962,-973.37,0.00014015,2]
[330983178,1719983438971,-500.0,0.00014015,2]
[330983179,1719983438981,-500.0,0.00014015,2]
[330983180,1719983438994,-731.03,0.00014015,2]
[330983181,1719983439003,-500.0,0.00014015,2]
[330983182,1719983439014,-500.0,0.00014015,2]
[330983183,1719983439024,-3497.97,0.00014015,2]
[330983184,1719983439034,-313.78806688,0.00014015,2]
[330983188,1719983442220,160.0,9.999e-05,2]
[330983269,1719983642583,158.02405824,0.0001212,2]
[330983273,1719984506157,-300.0,0.00014011,2]
[330983274,1719984506185,-450.98050612,0.00014012,2]
[330983275,1719984506220,-118.65949388,0.00014012,2]
[330983276,1719984506248,-632.32101224,0.00014012,2]
[330983277,1719984531015,-781.01972636,0.00014012,2]
[330983278,1719984531129,-550.07006832,0.00014012,2]
[330983279,1719984556208,-300.0,0.00014011,2]
[330983280,1719984556353,-426.62516024,0.00014012,2]
[330983281,1719984556528,-807.64152225,0.00014012,2]
[330983282,1719984581556,-838.3268559,0.00014012,2]
[330983283,1719984581721,-140.2731441,0.00014012,2]
[330983284,1719984581804,-467.22231619,0.00014012,2]
[330983285,1719984606383,-300.0,0.00014011,2]
[330983286,1719984606572,-528.53701913,0.00014012,2]
[330983287,1719984606741,-867.24330223,0.00014012,2]
[330983358,1719984638686,-665.01168979,0.00014012,2]
[330983359,1719984638698,-68.07831021,0.00014012,2]
[330983360,1719984638707,-1803.26,0.00014012,2]
[330983361,1719984638717,-1875.55,0.00014012,2]
[330983363,1719984638726,-972.04,0.00014012,2]
[330983364,1719984638736,-500.0,0.00014012,2]
[330983366,1719984638747,-641.41431082,0.00014012,2]
[330983368,1719984638758,-850.57,0.00014012,2]
[330983369,1719984638770,-2562.65,0.00014012,2]
[330983370,1719984638778,-545.9,0.00014012,2]
[330983371,1719984638787,-1597.49,0.00014012,2]
[330983372,1719984638799,-932.81,0.00014012,2]
[330983373,1719984638808,-700.57,0.00014012,2]
[330983374,1719984638817,-8032.17,0.00014012,2]
[330983375,1719984638826,-2374.48,0.00014012,2]
[330983376,1719984638836,-937.82,0.00014012,2]
[330983377,1719984638846,-1847.26,0.00014012,2]
[330983378,1719984638856,-156.1689829,0.00014012,2]
[330983379,1719984638865,-249.24185964,0.00014012,2]
[330983380,1719984638874,-385.21271954,0.00014012,2]
[330983381,1719984638883,-500.0,0.00014013,2]
[330983382,1719984638892,-500.0,0.00014013,2]
[330983383,1719984638902,-500.0,0.00014013,2]
[330983384,1719984638911,-500.0,0.00014013,2]
[330983385,1719984638921,-500.0,0.00014013,2]
[330983386,1719984638931,-500.0,0.00014013,2]
[330983387,1719984638940,-500.0,0.00014013,2]
[330983388,1719984638950,-500.0,0.00014013,2]
[330983389,1719984638960,-501.74191606,0.00014013,2]
[330983390,1719984638969,-500.0,0.00014013,2]
[330983391,1719984638979,-563.46,0.00014013,2]
[330983392,1719984638990,-149.56042834,0.00014013,2]
[330983448,1719984641198,-305.06982983,0.00014013,2]
[330984100,1719985061688,212.31639303,9.999e-05,2]
[330984102,1719985107669,182.10293608,0.00013912,2]
[330984104,1719985733699,-300.0,0.0001401,2]
[330984105,1719985733729,-300.0,0.0001401,2]
[330984107,1719985733762,-182.33946199,0.0001401,2]
[330984109,1719985733801,-361.65053801,0.0001401,2]
[330984111,1719985733834,-365.83263755,0.0001401,2]
[330984113,1719985758630,-812.53591475,0.0001401,2]
[330984114,1719985758704,-384.0014477,0.0001401,2]
[330984115,1719985758738,-300.0,0.0001401,2]
[330984116,1719985758772,-99.52715034,0.0001401,2]
[330984117,1719985783781,-844.457205,0.0001401,2]
[330984118,1719985783867,-455.92221386,0.0001401,2]
[330984119,1719985808622,-300.0,0.00014009,2]
[330984120,1719985808652,-570.46479338,0.0001401,2]